fUSD/lending_fUSD_20250205
["ID","MTS","AMOUNT","RATE_DAILY","PERIOD"]
[351760141,1738779078028,-500.0,9.756e-05,2]
[351760142,1738779078037,-500.0,9.756e-05,2]
[351760143,1738779078047,-500.0,9.756e-05,2]
[351760144,1738779078063,-500.0,9.756e-05,2]
[351760145,1738779078074,-500.0,9.756e-05,2]
[351760146,1738779078085,-500.0,9.756e-05,2]
[351760147,1738779078097,-500.0,9.756e-05,2]
[351760148,1738779078107,-232.09,9.756e-05,2]
[351760149,1738779078116,-500.0,9.756e-05,2]
[351760150,1738779078126,-387.91,9.756e-05,2]
[351760151,1738779078137,-500.0,9.756e-05,2]
[351760152,1738779078147,-500.0,9.756e-05,2]
[351760153,1738779078157,-500.0,9.756e-05,2]
[351760154,1738779078167,-500.0,9.756e-05,2]
[351760155,1738779078178,-500.0,9.756e-05,2]
[351760156,1738779078187,-500.0,9.756e-05,2]
[351760157,1738779078197,-500.0,9.756e-05,2]
[351760158,1738779078207,-500.0,9.756e-05,2]
[351760159,1738779078216,-500.0,9.756e-05,2]
[351760160,1738779078225,-500.0,9.756e-05,2]
[351760161,1738779078236,-500.0,9.756e-05,2]
[351760162,1738779078246,-500.0,9.756e-05,2]
[351760163,1738779078256,-500.0,9.756e-05,2]
[351760164,1738779078266,-500.0,9.756e-05,2]
[351760165,1738779078277,-500.0,9.756e-05,2]
[351760166,1738779078287,-500.0,9.756e-05,2]
[351760167,1738779078297,-500.0,9.756e-05,2]
[351760168,1738779078307,-500.0,9.756e-05,2]
[351760169,1738779078320,-500.0,9.756e-05,2]
[351760170,1738779078331,-500.0,9.756e-05,2]
[351760171,1738779078341,-500.0,9.756e-05,2]
[351760172,1738779078351,-500.0,9.756e-05,2]
[351760173,1738779078361,-500.0,9.756e-05,2]
[351760174,1738779078371,-543.29,9.756e-05,2]
[351760175,1738779078381,-500.0,9.756e-05,2]
[351760176,1738779078392,-500.0,9.756e-05,2]
[351760177,1738779078402,-500.0,9.756e-05,2]
[351760178,1738779078412,-500.0,9.756e-05,2]
[351760179,1738779078422,-500.0,9.756e-05,2]
[351760180,1738779078432,-396.7,9.756e-05,2]
[351760181,1738779078442,-500.0,9.756e-05,2]
[351760182,1738779078452,-391.68,9.756e-05,2]
[351760183,1738779078462,-500.0,9.756e-05,2]
[351760184,1738779078472,-500.0,9.756e-05,2]
[351760185,1738779078482,-500.0,9.756e-05,2]
[351760186,1738779078492,-500.0,9.756e-05,2]
[351760187,1738779078502,-500.0,9.756e-05,2]
[351760188,1738779078512,-500.0,9.756e-05,2]
[351760189,1738779078522,-310.06,9.756e-05,2]
[351760190,1738779078533,-667.18,9.756e-05,2]
[351760191,1738779078543,-500.0,9.756e-05,2]
[351760192,1738779078554,-500.0,9.756e-05,2]
[351760193,1738779078566,-500.0,9.756e-05,2]
[351760194,1738779078576,-500.0,9.756e-05,2]
[351760195,1738779078586,-500.0,9.756e-05,2]
[351760196,1738779078596,-500.0,9.756e-05,2]
[351760197,1738779078606,-500.0,9.756e-05,2]
[351760198,1738779078616,-839.37,9.756e-05,2]
[351760199,1738779078626,-666.9,9.756e-05,2]
[351760200,1738779078635,-500.0,9.756e-05,2]
[351760201,1738779078646,-500.0,9.756e-05,2]
[351760202,1738779078656,-500.0,9.756e-05,2]
[351760203,1738779078666,-500.0,9.756e-05,2]
[351760204,1738779078676,-500.0,9.756e-05,2]
[351760205,1738779078686,-500.0,9.756e-05,2]
[351760206,1738779078696,-500.0,9.756e-05,2]
[351760207,1738779078705,-500.0,9.756e-05,2]
[351760208,1738779078715,-559.68,9.756e-05,2]
[351760209,1738779078725,-497.14,9.756e-05,2]
[351760210,1738779078735,-500.0,9.756e-05,2]
[351760211,1738779078748,-305.63,9.756e-05,2]
[351760212,1738779078758,-500.0,9.756e-05,2]
[351760213,1738779078768,-500.0,9.756e-05,2]
[351760214,1738779078779,-500.0,9.756e-05,2]
[351760215,1738779078789,-500.0,9.756e-05,2]
[351760216,1738779078799,-513.56,9.756e-05,2]
[351760217,1738779078808,-500.0,9.756e-05,2]
[351760218,1738779078821,-500.0,9.756e-05,2]
[351760219,1738779078830,-500.0,9.756e-05,2]
[351760220,1738779078841,-443.77,9.756e-05,2]
[351760221,1738779078851,-437.64,9.756e-05,2]
[351760222,1738779078861,-1255.48,9.756e-05,2]
[351760223,1738779078871,-635.11,9.756e-05,2]
[351760224,1738779078882,-500.0,9.756e-05,2]
[351760225,1738779078891,-500.0,9.756e-05,2]
[351760226,1738779078901,-528.55,9.756e-05,2]
[351760227,1738779078912,-500.0,9.756e-05,2]
[351760228,1738779078921,-500.0,9.756e-05,2]
[351760229,1738779078931,-500.0,9.756e-05,2]
[351760230,1738779078940,-500.0,9.756e-05,2]
[351760231,1738779078950,-500.0,9.756e-05,2]
[351760232,1738779078960,-500.0,9.756e-05,2]
[351760233,1738779078969,-500.0,9.756e-05,2]
[351760234,1738779078979,-183.96,9.756e-05,2]
[351760235,1738779078990,-173.46,9.756e-05,2]
[351760236,1738779079001,-500.0,9.756e-05,2]
[351760237,1738779079011,-1372.72,9.756e-05,2]
[351760238,1738779079022,-500.0,9.756e-05,2]
[351760239,1738779079032,-468.82,9.756e-05,2]
[351760240,1738779079043,-500.0,9.756e-05,2]
[351760241,1738779079054,-500.0,9.756e-05,2]
[351760242,1738779079068,-521.28,9.756e-05,2]
[351760243,1738779079079,-500.0,9.756e-05,2]
[351760244,1738779079090,-500.0,9.756e-05,2]
[351760245,1738779079099,-500.0,9.756e-05,2]
[351760246,1738779079110,-500.0,9.756e-05,2]
[351760247,1738779079121,-500.0,9.756e-05,2]
[351760248,1738779079131,-500.0,9.756e-05,2]
[351760249,1738779079141,-1171.69,9.756e-05,2]
[351760250,1738779079151,-500.0,9.756e-05,2]
[351760251,1738779079161,-500.0,9.756e-05,2]
[351760252,1738779079171,-500.0,9.756e-05,2]
[351760253,1738779079182,-500.0,9.756e-05,2]
[351760254,1738779079192,-563.85,9.756e-05,2]
[351760255,1738779079202,-387.28,9.756e-05,2]
[351760256,1738779079212,-500.0,9.756e-05,2]
[351760257,1738779079222,-500.0,9.756e-05,2]
[351760258,1738779079232,-500.0,9.756e-05,2]
[351760259,1738779079242,-4951.95,9.756e-05,2]
[351760260,1738779079253,-361.64,9.757e-05,2]
[351760261,1738779079263,-168.53,9.757e-05,2]
[351760262,1738779079273,-300.37,9.757e-05,2]
[351760263,1738779079283,-500.0,9.757e-05,2]
[351760264,1738779079294,-500.0,9.757e-05,2]
[351760265,1738779079303,-250.0,9.8e-05,2]
[351760266,1738779079317,-250.0,9.8e-05,2]
[351760267,1738779079327,-250.0,9.8e-05,2]
[351760268,1738779079337,-250.0,9.8e-05,2]
[351760269,1738779079347,-250.0,9.8e-05,2]
[351760270,1738779079357,-250.0,9.8e-05,2]
[351760271,1738779079367,-250.0,9.8e-05,2]
[351760272,1738779079377,-250.0,9.8e-05,2]
[351760273,1738779079387,-250.0,9.8e-05,2]
[351760274,1738779079397,-250.0,9.8e-05,2]
[351760275,1738779079407,-250.0,9.8e-05,2]
[351760276,1738779079418,-250.0,9.8e-05,2]
[351760277,1738779079428,-250.0,9.8e-05,2]
[351760278,1738779079439,-250.0,9.8e-05,2]
[351760279,1738779079449,-250.0,9.8e-05,2]
[351760280,1738779079459,-250.0,9.8e-05,2]
[351760281,1738779079470,-250.0,9.8e-05,2]
[351760282,1738779079481,-250.0,9.8e-05,2]
[351760283,1738779079491,-250.0,9.8e-05,2]
[351760284,1738779079501,-250.0,9.8e-05,2]
[351760285,1738779079512,-250.0,9.8e-05,2]
[351760286,1738779079523,-250.0,9.8e-05,2]
[351760287,1738779079534,-250.0,9.8e-05,2]
[351760288,1738779079545,-250.0,9.8e-05,2]
[351760289,1738779079556,-250.0,9.8e-05,2]
[351760290,1738779079575,-250.0,9.8e-05,2]
[351760291,1738779079586,-250.0,9.8e-05,2]
[351760292,1738779079596,-250.0,9.8e-05,2]
[351760293,1738779079607,-250.0,9.8e-05,2]
[351760294,1738779079617,-250.0,9.8e-05,2]
[351760295,1738779079628,-250.0,9.8e-05,2]
[351760296,1738779079638,-250.0,9.8e-05,2]
[351760297,1738779079648,-250.0,9.8e-05,2]
[351760298,1738779079659,-250.0,9.8e-05,2]
[351760299,1738779079671,-250.0,9.8e-05,2]
[351760300,1738779079681,-250.0,9.8e-05,2]
[351760301,1738779079691,-250.0,9.8e-05,2]
[351760302,1738779079701,-250.0,9.8e-05,2]
[351760303,1738779079712,-310.0,9.8e-05,2]
[351760304,1738779079724,-500.0,9.892e-05,2]
[351760305,1738779079735,-500.0,9.892e-05,2]
[351760306,1738779079748,-500.0,9.892e-05,2]
[351760307,1738779079758,-500.0,9.892e-05,2]
[351760308,1738779079768,-500.0,9.892e-05,2]
[351760309,1738779079779,-292.504537,9.892e-05,2]
[351760310,1738779079790,-500.0,9.892e-05,2]
[351760311,1738779079799,-500.0,9.892e-05,2]
[351760312,1738779079810,-192.835552,9.892e-05,2]
[351760313,1738779079824,-500.0,9.892e-05,2]
[351760314,1738779079835,-500.0,9.892e-05,2]
[351760315,1738779079846,-500.0,9.892e-05,2]
[351760316,1738779079857,-500.0,9.892e-05,2]
[351760317,1738779079868,-500.0,9.892e-05,2]
[351760318,1738779079878,-500.0,9.892e-05,2]
[351760319,1738779079888,-500.0,9.892e-05,2]
[351760320,1738779079899,-500.0,9.892e-05,2]
[351760321,1738779079909,-560.65,9.892e-05,2]
[351760322,1738779079920,-2183.94,9.892e-05,2]
[351760323,1738779079930,-500.0,9.892e-05,2]
[351760324,1738779079941,-814.58,9.892e-05,2]
[351760325,1738779079952,-500.0,9.892e-05,2]
[351760326,1738779079963,-500.0,9.892e-05,2]
[351760327,1738779079973,-1458.88,9.892e-05,2]
[351760328,1738779079985,-612.3,9.892e-05,2]
[351760329,1738779079995,-500.0,9.892e-05,2]
[351760330,1738779080006,-500.0,9.892e-05,2]
[351760331,1738779080017,-557.84,9.892e-05,2]
[351760332,1738779080027,-500.0,9.892e-05,2]
[351760333,1738779080038,-503.68,9.892e-05,2]
[351760334,1738779080048,-511.77,9.892e-05,2]
[351760335,1738779080059,-601.09,9.892e-05,2]
[351760336,1738779080076,-500.0,9.892e-05,2]
[351760337,1738779080087,-707.61,9.892e-05,2]
[351760338,1738779080099,-500.0,9.892e-05,2]
[351760339,1738779080110,-535.08,9.892e-05,2]
[351760340,1738779080120,-500.0,9.892e-05,2]
[351760341,1738779080130,-500.0,9.892e-05,2]
[351760342,1738779080140,-1045.03,9.892e-05,2]
[351760343,1738779080151,-500.0,9.892e-05,2]
[351760344,1738779080161,-854.62,9.892e-05,2]
[351760345,1738779080171,-500.0,9.892e-05,2]
[351760346,1738779080182,-500.0,9.892e-05,2]
[351760347,1738779080192,-500.0,9.892e-05,2]
[351760348,1738779080202,-500.0,9.892e-05,2]
[351760349,1738779080213,-897.21,9.892e-05,2]
[351760350,1738779080223,-500.0,9.892e-05,2]
[351760351,1738779080233,-500.0,9.892e-05,2]
[351760352,1738779080244,-500.0,9.892e-05,2]
[351760353,1738779080254,-600.33,9.892e-05,2]
[351760354,1738779080264,-500.0,9.892e-05,2]
[351760355,1738779080274,-500.0,9.892e-05,2]
[351760356,1738779080284,-500.0,9.892e-05,2]
[351760357,1738779080294,-812.01,9.892e-05,2]
[351760358,1738779080304,-541.01,9.892e-05,2]
[351760359,1738779080317,-500.0,9.892e-05,2]
[351760360,1738779080327,-500.0,9.892e-05,2]
[351760361,1738779080336,-547.74,9.892e-05,2]
[351760362,1738779080346,-554.04,9.893e-05,2]
[351760363,1738779080356,-500.0,9.893e-05,2]
[351760364,1738779080367,-500.0,9.893e-05,2]
[351760365,1738779080376,-500.0,9.893e-05,2]
[351760366,1738779080386,-281.27,9.893e-05,2]
[351760367,1738779080396,-500.0,9.893e-05,2]
[351760368,1738779080406,-373.99,9.893e-05,2]
[351760369,1738779080415,-500.0,9.893e-05,2]
[351760370,1738779080424,-500.0,9.893e-05,2]
[351760371,1738779080434,-500.0,9.893e-05,2]
[351760372,1738779080444,-536.34,9.893e-05,2]
[351760373,1738779080453,-500.0,9.893e-05,2]
[351760374,1738779080463,-450.7,9.893e-05,2]
[351760375,1738779080472,-500.0,9.893e-05,2]
[351760376,1738779080483,-500.0,9.893e-05,2]
[351760377,1738779080493,-500.0,9.893e-05,2]
[351760378,1738779080503,-500.0,9.893e-05,2]
[351760379,1738779080513,-500.0,9.893e-05,2]
[351760380,1738779080523,-466.3,9.893e-05,2]
[351760381,1738779080533,-365.83,9.893e-05,2]
[351760382,1738779080543,-500.0,9.893e-05,2]
[351760383,1738779080552,-500.0,9.893e-05,2]
[351760384,1738779080565,-500.0,9.893e-05,2]
[351760385,1738779080574,-431.87,9.893e-05,2]
[351760386,1738779080584,-505.64,9.893e-05,2]
[351760387,1738779080595,-590.1,9.893e-05,2]
[351760388,1738779080605,-500.0,9.893e-05,2]
[351760389,1738779080614,-500.0,9.893e-05,2]
[351760390,1738779080624,-199.12,9.893e-05,2]
[351760391,1738779080634,-419.68,9.893e-05,2]
[351760392,1738779080643,-500.0,9.893e-05,2]
[351760393,1738779080652,-500.0,9.893e-05,2]
[351760394,1738779080662,-500.0,9.893e-05,2]
[351760395,1738779080671,-294.42,9.893e-05,2]
[351760396,1738779080681,-257.28,9.893e-05,2]
[351760397,1738779080691,-500.0,9.893e-05,2]
[351760398,1738779080701,-481.69,9.893e-05,2]
[351760399,1738779080710,-500.0,9.893e-05,2]
[351760400,1738779080720,-359.32,9.893e-05,2]
[351760401,1738779080730,-500.0,9.893e-05,2]
[351760402,1738779080742,-500.0,9.893e-05,2]
[351760403,1738779080755,-269.73,9.893e-05,2]
[351760404,1738779080765,-543.29,9.893e-05,2]
[351760405,1738779080775,-500.0,9.893e-05,2]
[351760406,1738779080785,-500.0,9.893e-05,2]
[351760407,1738779080795,-500.0,9.893e-05,2]
[351760408,1738779080805,-500.0,9.893e-05,2]
[351760409,1738779080817,-500.0,9.893e-05,2]
[351760410,1738779080827,-500.0,9.893e-05,2]
[351760411,1738779080837,-605.43,9.893e-05,2]
[351760412,1738779080846,-500.0,9.893e-05,2]
[351760413,1738779080857,-410.29735146,9.893e-05,2]
[351760414,1738779080867,-641.78,9.893e-05,2]
[351760415,1738779080877,-500.0,9.893e-05,2]
[351760416,1738779080887,-500.0,9.893e-05,2]
[351760417,1738779080896,-667.18,9.893e-05,2]
[351760418,1738779080906,-500.0,9.893e-05,2]
[351760419,1738779080916,-185.73,9.893e-05,2]
[351760420,1738779080925,-402.39,9.893e-05,2]
[351760421,1738779080935,-500.0,9.893e-05,2]
[351760422,1738779080945,-633.68,9.893e-05,2]
[351760423,1738779080954,-500.0,9.893e-05,2]
[351760424,1738779080964,-500.0,9.893e-05,2]
[351760425,1738779081128,-839.37,9.893e-05,2]
[351760426,1738779081138,-666.9,9.893e-05,2]
[351760427,1738779081148,-500.0,9.893e-05,2]
[351760428,1738779081158,-500.0,9.893e-05,2]
[351760429,1738779081168,-500.0,9.893e-05,2]
[351760430,1738779081178,-500.0,9.893e-05,2]
[351760431,1738779081187,-500.0,9.893e-05,2]
[351760432,1738779081197,-500.0,9.893e-05,2]
[351760433,1738779081206,-500.0,9.893e-05,2]
[351760434,1738779081217,-500.0,9.893e-05,2]
[351760435,1738779081226,-429.12,9.893e-05,2]
[351760436,1738779081235,-500.0,9.893e-05,2]
[351760437,1738779081246,-500.0,9.893e-05,2]
[351760438,1738779081257,-509.8,9.893e-05,2]
[351760439,1738779081267,-500.0,9.893e-05,2]
[351760440,1738779081277,-500.0,9.893e-05,2]
[351760441,1738779081286,-500.0,9.893e-05,2]
[351760442,1738779081295,-500.0,9.893e-05,2]
[351760443,1738779081305,-1255.48,9.893e-05,2]
[351760444,1738779081317,-635.11,9.893e-05,2]
[351760445,1738779081327,-500.0,9.893e-05,2]
[351760446,1738779081336,-500.0,9.893e-05,2]
[351760447,1738779081347,-500.0,9.893e-05,2]
[351760448,1738779081356,-500.0,9.893e-05,2]
[351760449,1738779081366,-626.14,9.893e-05,2]
[351760450,1738779081376,-500.0,9.893e-05,2]
[351760451,1738779081386,-500.0,9.893e-05,2]
[351760452,1738779081396,-500.0,9.893e-05,2]
[351760453,1738779081405,-500.0,9.893e-05,2]
[351760454,1738779081416,-500.0,9.893e-05,2]
[351760455,1738779081426,-1372.72,9.893e-05,2]
[351760456,1738779081436,-500.0,9.893e-05,2]
[351760457,1738779081446,-500.0,9.893e-05,2]
[351760458,1738779081456,-500.0,9.893e-05,2]
[351760459,1738779081467,-500.0,9.893e-05,2]
[351760460,1738779081476,-628.12,9.893e-05,2]
[351760461,1738779081487,-500.0,9.893e-05,2]
[351760462,1738779081496,-251.9,9.893e-05,2]
[351760463,1738779081506,-500.0,9.893e-05,2]
[351760464,1738779081516,-500.0,9.893e-05,2]
[351760465,1738779081525,-1171.69,9.893e-05,2]
[351760466,1738779081535,-500.0,9.893e-05,2]
[351760467,1738779081544,-500.0,9.893e-05,2]
[351760468,1738779081554,-399.8,9.893e-05,2]
[351760469,1738779081565,-288.95,9.893e-05,2]
[351760470,1738779081576,-500.0,9.893e-05,2]
[351760471,1738779081585,-500.0,9.893e-05,2]
[351760472,1738779081595,-500.0,9.893e-05,2]
[351760473,1738779081605,-4951.95,9.893e-05,2]
[351760474,1738779081614,-252.32,9.894e-05,2]
[351760475,1738779081624,-576.18,9.894e-05,2]
[351760476,1738779081634,-200.0,9.938e-05,2]
[351760477,1738779081644,-1238.96003264,9.941e-05,2]
[351760478,1738779081654,-1238.96003264,9.943e-05,2]
[351760479,1738779081663,-1238.96003264,9.947e-05,2]
[351760480,1738779081673,-200.0,9.96e-05,2]
[351760481,1738779081683,-1238.96003264,9.998e-05,2]
[351760482,1738779081692,-233.8159224,0.0001,2]
[351760483,1738779081703,-500.0,0.00010029,2]
[351760484,1738779081713,-500.0,0.00010029,2]
[351760485,1738779081722,-500.0,0.00010029,2]
[351760486,1738779081734,-500.0,0.00010029,2]
[351760487,1738779081745,-500.0,0.00010029,2]
[351760488,1738779081755,-292.504537,0.00010029,2]
[351760489,1738779081765,-500.0,0.00010029,2]
[351760490,1738779081775,-500.0,0.00010029,2]
[351760491,1738779081785,-192.835552,0.00010029,2]
[351760492,1738779081795,-500.0,0.00010029,2]
[351760493,1738779081805,-500.0,0.00010029,2]
[351760494,1738779081817,-500.0,0.00010029,2]
[351760495,1738779081827,-500.0,0.00010029,2]
[351760496,1738779081836,-500.0,0.00010029,2]
[351760497,1738779081846,-500.0,0.00010029,2]
[351760498,1738779081856,-500.0,0.00010029,2]
[351760499,1738779081866,-500.0,0.00010029,2]
[351760500,1738779081876,-560.65,0.00010029,2]
[351760501,1738779081885,-2183.94,0.00010029,2]
[351760502,1738779081895,-151.178308,0.00010029,2]
[351760503,1738779081905,-500.0,0.00010029,2]
[351760504,1738779081915,-814.58,0.00010029,2]
[351760505,1738779081925,-500.0,0.00010029,2]
[351760506,1738779081935,-500.0,0.00010029,2]
[351760507,1738779081944,-1458.88,0.00010029,2]
[351760508,1738779081954,-500.0,0.00010029,2]
[351760509,1738779081963,-500.0,0.00010029,2]
[351760510,1738779081973,-557.84,0.00010029,2]
[351760511,1738779081983,-500.0,0.00010029,2]
[351760512,1738779081993,-503.68,0.00010029,2]
[351760513,1738779082003,-511.77,0.00010029,2]
[351760514,1738779082013,-601.09,0.00010029,2]
[351760515,1738779082022,-500.0,0.00010029,2]
[351760516,1738779082032,-707.61,0.00010029,2]
[351760517,1738779082042,-500.0,0.00010029,2]
[351760518,1738779082052,-535.08,0.00010029,2]
[351760519,1738779082063,-500.0,0.00010029,2]
[351760520,1738779082072,-500.0,0.00010029,2]
[351760521,1738779082082,-1045.03,0.00010029,2]
[351760522,1738779082093,-500.0,0.00010029,2]
[351760523,1738779082103,-854.62,0.00010029,2]
[351760524,1738779082114,-500.0,0.00010029,2]
[351760525,1738779082124,-500.0,0.00010029,2]
[351760526,1738779082132,-500.0,0.00010029,2]
[351760527,1738779082142,-500.0,0.00010029,2]
[351760528,1738779082151,-897.21,0.00010029,2]
[351760529,1738779082161,-500.0,0.00010029,2]
[351760530,1738779082170,-500.0,0.00010029,2]
[351760531,1738779082180,-500.0,0.00010029,2]
[351760532,1738779082190,-600.33,0.00010029,2]
[351760533,1738779082200,-500.0,0.00010029,2]
[351760534,1738779082210,-500.0,0.00010029,2]
[351760535,1738779082220,-500.0,0.00010029,2]
[351760536,1738779082229,-812.01,0.00010029,2]
[351760537,1738779082239,-541.01,0.00010029,2]
[351760538,1738779082249,-500.0,0.00010029,2]
[351760539,1738779082259,-500.0,0.00010029,2]
[351760540,1738779082268,-547.74,0.00010029,2]
[351760541,1738779082278,-500.0,0.0001003,2]
[351760542,1738779082287,-500.0,0.0001003,2]
[351760543,1738779082297,-329.32,0.0001003,2]
[351760544,1738779082307,-500.0,0.0001003,2]
[351760545,1738779082319,-534.35,0.0001003,2]
[351760546,1738779082328,-500.0,0.0001003,2]
[351760547,1738779082338,-268.78,0.0001003,2]
[351760548,1738779082348,-500.0,0.0001003,2]
[351760549,1738779082357,-636.86,0.0001003,2]
[351760550,1738779082366,-500.0,0.0001003,2]
[351760551,1738779082376,-493.17,0.0001003,2]
[351760552,1738779082386,-500.0,0.0001003,2]
[351760553,1738779082395,-500.0,0.0001003,2]
[351760554,1738779082404,-500.0,0.0001003,2]
[351760555,1738779082414,-298.42,0.0001003,2]
[351760556,1738779082423,-268.25,0.0001003,2]
[351760557,1738779082433,-500.0,0.0001003,2]
[351760558,1738779082442,-500.0,0.0001003,2]
[351760559,1738779082452,-500.0,0.0001003,2]
[351760560,1738779082461,-500.0,0.0001003,2]
[351760561,1738779082471,-500.0,0.0001003,2]
[351760562,1738779082480,-500.0,0.0001003,2]
[351760563,1738779082490,-500.0,0.0001003,2]
[351760564,1738779082500,-500.0,0.0001003,2]
[351760565,1738779082510,-500.0,0.0001003,2]
[351760566,1738779082519,-543.29,0.0001003,2]
[351760567,1738779082530,-529.62,0.0001003,2]
[351760568,1738779082540,-500.0,0.0001003,2]
[351760569,1738779082549,-500.0,0.0001003,2]
[351760570,1738779082560,-257.27,0.0001003,2]
[351760571,1738779082570,-500.0,0.0001003,2]
[351760572,1738779082579,-285.6,0.0001003,2]
[351760573,1738779082589,-500.0,0.0001003,2]
[351760574,1738779082599,-500.0,0.0001003,2]
[351760575,1738779082608,-500.0,0.0001003,2]
[351760576,1738779082617,-667.18,0.0001003,2]
[351760577,1738779082627,-500.0,0.0001003,2]
[351760578,1738779082636,-500.0,0.0001003,2]
[351760579,1738779082646,-500.0,0.0001003,2]
[351760580,1738779082655,-500.0,0.0001003,2]
[351760581,1738779082665,-839.37,0.0001003,2]
[351760582,1738779082674,-666.9,0.0001003,2]
[351760583,1738779082684,-500.0,0.0001003,2]
[351760584,1738779082694,-500.0,0.0001003,2]
[351760585,1738779082703,-500.0,0.0001003,2]
[351760586,1738779082712,-500.0,0.0001003,2]
[351760587,1738779082720,-406.58,0.0001003,2]
[351760588,1738779082730,-500.0,0.0001003,2]
[351760589,1738779082739,-500.0,0.0001003,2]
[351760590,1738779082752,-286.05,0.0001003,2]
[351760591,1738779082762,-427.47,0.0001003,2]
[351760592,1738779082772,-500.0,0.0001003,2]
[351760593,1738779082781,-379.66,0.0001003,2]
[351760594,1738779082792,-502.53,0.0001003,2]
[351760595,1738779082801,-500.0,0.0001003,2]
[351760596,1738779082812,-507.19,0.0001003,2]
[351760597,1738779082822,-1255.48,0.0001003,2]
[351760598,1738779082832,-635.11,0.0001003,2]
[351760599,1738779082841,-601.07,0.0001003,2]
[351760600,1738779082851,-500.0,0.0001003,2]
[351760601,1738779082860,-500.0,0.0001003,2]
[351760602,1738779082870,-600.95,0.0001003,2]
[351760603,1738779082880,-500.0,0.0001003,2]
[351760604,1738779082889,-500.0,0.0001003,2]
[351760605,1738779082898,-534.01,0.0001003,2]
[351760606,1738779082907,-500.0,0.0001003,2]
[351760607,1738779082917,-500.0,0.0001003,2]
[351760608,1738779082928,-1372.72,0.0001003,2]
[351760609,1738779082937,-500.0,0.0001003,2]
[351760610,1738779082947,-500.0,0.0001003,2]
[351760611,1738779082956,-500.0,0.0001003,2]
[351760612,1738779082966,-500.0,0.0001003,2]
[351760613,1738779082976,-500.0,0.0001003,2]
[351760614,1738779082986,-210.17,0.0001003,2]
[351760615,1738779082995,-317.36,0.0001003,2]
[351760616,1738779083004,-1171.69,0.0001003,2]
[351760617,1738779083016,-500.0,0.0001003,2]
[351760618,1738779083027,-500.0,0.0001003,2]
[351760619,1738779083036,-500.0,0.0001003,2]
[351760620,1738779083046,-500.0,0.0001003,2]
[351760621,1738779083055,-500.0,0.0001003,2]
[351760622,1738779083071,-4951.95,0.0001003,2]
[351760623,1738779083081,-395.1,0.00010058,2]
[351760624,1738779083091,-250.0,0.00010083,2]
[351760625,1738779083101,-1000.0,0.00010137,2]
[351760626,1738779083110,-304.90898746,0.00010164,2]
[351760627,1738779083120,-500.0,0.00010166,2]
[351760628,1738779083129,-500.0,0.00010166,2]
[351760629,1738779083139,-489.92,0.00010166,2]
[351760630,1738779083148,-400.88,0.00010166,2]
[351760631,1738779083157,-500.0,0.00010166,2]
[351760632,1738779083167,-292.504537,0.00010166,2]
[351760633,1738779083176,-500.0,0.00010166,2]
[351760634,1738779083186,-500.0,0.00010166,2]
[351760635,1738779083195,-192.835552,0.00010166,2]
[351760636,1738779083204,-500.0,0.00010166,2]
[351760637,1738779083213,-500.0,0.00010166,2]
[351760638,1738779083222,-500.0,0.00010166,2]
[351760639,1738779083231,-500.0,0.00010166,2]
[351760640,1738779083240,-500.0,0.00010166,2]